fUSD/lending_fUSD_20250415
["ID","MTS","AMOUNT","RATE_DAILY","PERIOD"]
[358086079,1744698632194,-500.0,0.00017998,2]
[358086080,1744698632204,-317.55921384,0.00017998,2]
[358086081,1744698632213,-325.07420577,0.00017998,2]
[358086082,1744698632223,-500.0,0.00017998,2]
[358086083,1744698632233,-298.36,0.00017998,2]
[358086084,1744698632242,-500.0,0.00017998,2]
[358086085,1744698632252,-500.0,0.00017998,2]
[358086086,1744698632262,-500.0,0.00017998,2]
[358086087,1744698632272,-500.0,0.00017998,2]
[358086088,1744698632282,-500.0,0.00017998,2]
[358086089,1744698632292,-500.0,0.00017998,2]
[358086090,1744698632301,-500.0,0.00017998,2]
[358086091,1744698632311,-500.0,0.00017998,2]
[358086092,1744698632320,-500.0,0.00017998,2]
[358086093,1744698632329,-500.0,0.00017998,2]
[358086094,1744698632339,-500.0,0.00017998,2]
[358086095,1744698632348,-500.0,0.00017998,2]
[358086096,1744698632358,-500.0,0.00017998,2]
[358086097,1744698632368,-500.0,0.00017998,2]
[358086098,1744698632378,-500.0,0.00017998,2]
[358086099,1744698632388,-500.0,0.00017998,2]
[358086100,1744698632397,-500.0,0.00017998,2]
[358086101,1744698632407,-500.0,0.00017998,2]
[358086102,1744698632417,-500.0,0.00017998,2]
[358086103,1744698632426,-182.55763559,0.00017998,2]
[358086104,1744698632439,-317.44236441,0.00017998,2]
[358086105,1744698632448,-500.0,0.00017998,2]
[358086106,1744698632458,-500.0,0.00017998,2]
[358086107,1744698632467,-500.0,0.00017998,2]
[358086108,1744698632476,-391.52947992,0.00017998,2]
[358086109,1744698632488,-108.47052008,0.00017998,2]
[358086110,1744698632498,-391.52947992,0.00017998,2]
[358086111,1744698632513,-108.47052008,0.00017998,2]
[358086112,1744698632523,-269.22,0.00017998,2]
[358086113,1744698632533,-35.52141921,0.00017998,2]
[358086114,1744698632544,-464.47858079,0.00017998,2]
[358086115,1744698632554,-500.0,0.00017998,2]
[358086116,1744698632564,-500.0,0.00017998,2]
[358086117,1744698632575,-500.0,0.00017998,2]
[358086118,1744698632585,-500.0,0.00017998,2]
[358086119,1744698632595,-500.0,0.00017998,2]
[358086120,1744698632604,-500.0,0.00017998,2]
[358086121,1744698632854,-500.0,0.00017998,2]
[358086122,1744698632864,-500.0,0.00017998,2]
[358086123,1744698632874,-500.0,0.00017998,2]
[358086124,1744698632884,-500.0,0.00017998,2]
[358086125,1744698632894,-500.0,0.00017998,2]
[358086126,1744698632903,-500.0,0.00017998,2]
[358086127,1744698632913,-500.0,0.00017998,2]
[358086128,1744698632922,-500.0,0.00017998,2]
[358086129,1744698632932,-500.0,0.00017998,2]
[358086130,1744698632941,-500.0,0.00017998,2]
[358086131,1744698632951,-500.0,0.00017998,2]
[358086132,1744698632960,-512.7784685,0.00017998,2]
[358086133,1744698632969,-500.0,0.00017998,2]
[358086134,1744698632978,-500.0,0.00017998,2]
[358086135,1744698632987,-500.0,0.00017998,2]
[358086136,1744698632997,-500.0,0.00017998,2]
[358086137,1744698633006,-500.0,0.00017998,2]
[358086138,1744698633016,-500.0,0.00017998,2]
[358086139,1744698633025,-500.0,0.00017998,2]
[358086140,1744698633035,-500.0,0.00017998,2]
[358086141,1744698633045,-500.0,0.00017998,2]
[358086142,1744698633055,-500.0,0.00017998,2]
[358086143,1744698633065,-508.38452348,0.00017998,2]
[358086144,1744698633079,-403.34419735,0.00017998,2]
[358086145,1744698633098,-96.65580265,0.00017998,2]
[358086146,1744698633108,-500.0,0.00017998,2]
[358086147,1744698633119,-500.0,0.00017998,2]
[358086148,1744698633128,-500.0,0.00017998,2]
[358086149,1744698633138,-500.0,0.00017998,2]
[358086150,1744698633147,-513.76684156,0.00017998,2]
[358086151,1744698633158,-500.0,0.00017998,2]
[358086152,1744698633169,-901.63,0.00017998,2]
[358086153,1744698633179,-500.0,0.00017998,2]
[358086154,1744698633188,-901.63,0.00017998,2]
[358086155,1744698633198,-500.0,0.00017998,2]
[358086156,1744698633207,-500.0,0.00017998,2]
[358086157,1744698633217,-901.63,0.00017998,2]
[358086158,1744698633227,-535.15180415,0.00017998,2]
[358086159,1744698633237,-901.63,0.00017998,2]
[358086160,1744698633247,-500.0,0.00017998,2]
[358086161,1744698633257,-500.0,0.00017998,2]
[358086162,1744698633267,-500.0,0.00017998,2]
[358086163,1744698633277,-500.0,0.00017998,2]
[358086164,1744698633286,-500.0,0.00017998,2]
[358086165,1744698633296,-500.0,0.00017998,2]
[358086166,1744698633305,-500.0,0.00017998,2]
[358086167,1744698633315,-500.0,0.00017998,2]
[358086168,1744698633325,-500.0,0.00017998,2]
[358086169,1744698633335,-500.0,0.00017998,2]
[358086170,1744698633347,-500.0,0.00017998,2]
[358086171,1744698633356,-500.0,0.00017998,2]
[358086172,1744698633366,-500.0,0.00017998,2]
[358086173,1744698633376,-500.0,0.00017998,2]
[358086174,1744698633386,-500.0,0.00017998,2]
[358086175,1744698633396,-449.79,0.00017998,2]
[358086176,1744698633405,-500.0,0.00017998,2]
[358086177,1744698633415,-500.0,0.00017998,2]
[358086178,1744698633425,-500.0,0.00017998,2]
[358086179,1744698633435,-1139.27,0.00017998,2]
[358086180,1744698633445,-500.0,0.00017998,2]
[358086181,1744698633454,-1139.27,0.00017998,2]
[358086182,1744698633464,-1139.27,0.00017998,2]
[358086183,1744698633473,-1139.27,0.00017998,2]
[358086184,1744698633483,-500.0,0.00017998,2]
[358086185,1744698633493,-500.0,0.00017998,2]
[358086186,1744698633503,-500.0,0.00017998,2]
[358086187,1744698633513,-500.0,0.00017998,2]
[358086188,1744698633523,-587.26,0.00017998,2]
[358086189,1744698633533,-587.26,0.00017998,2]
[358086190,1744698633543,-587.26,0.00017998,2]
[358086191,1744698633552,-587.26,0.00017998,2]
[358086192,1744698633562,-500.0,0.00017998,2]
[358086193,1744698633572,-500.0,0.00017998,2]
[358086194,1744698633582,-500.0,0.00017998,2]
[358086195,1744698633592,-500.0,0.00017998,2]
[358086196,1744698633602,-500.0,0.00017998,2]
[358086197,1744698633612,-500.0,0.00017998,2]
[358086198,1744698633622,-500.0,0.00017998,2]
[358086199,1744698633631,-500.0,0.00017998,2]
[358086200,1744698633642,-1079.34,0.00017998,2]
[358086201,1744698633652,-1079.34,0.00017998,2]
[358086202,1744698633662,-1079.34,0.00017998,2]
[358086203,1744698633675,-1079.34,0.00017998,2]
[358086204,1744698633685,-500.0,0.00017998,2]
[358086205,1744698633695,-500.0,0.00017998,2]
[358086206,1744698633706,-500.0,0.00017998,2]
[358086207,1744698633716,-500.0,0.00017998,2]
[358086208,1744698633726,-500.0,0.00017998,2]
[358086209,1744698633735,-500.0,0.00017998,2]
[358086210,1744698633745,-500.0,0.00017998,2]
[358086211,1744698633754,-500.0,0.00017998,2]
[358086212,1744698633765,-500.0,0.00017998,2]
[358086213,1744698633775,-500.0,0.00017998,2]
[358086214,1744698633785,-500.0,0.00017998,2]
[358086215,1744698633795,-500.0,0.00017998,2]
[358086216,1744698633805,-500.0,0.00017998,2]
[358086217,1744698633814,-500.0,0.00017998,2]
[358086218,1744698633824,-500.0,0.00017998,2]
[358086219,1744698633834,-500.0,0.00017998,2]
[358086220,1744698633844,-500.0,0.00017998,2]
[358086221,1744698633854,-500.0,0.00017998,2]
[358086222,1744698633864,-500.0,0.00017998,2]
[358086223,1744698633873,-500.0,0.00017998,2]
[358086224,1744698633883,-500.0,0.00017998,2]
[358086225,1744698633894,-500.0,0.00017998,2]
[358086226,1744698633903,-500.0,0.00017998,2]
[358086227,1744698633913,-500.0,0.00017998,2]
[358086228,1744698633923,-500.0,0.00017998,2]
[358086229,1744698633933,-594.12013812,0.00017998,2]
[358086230,1744698633943,-500.0,0.00017998,2]
[358086231,1744698633953,-150.0,0.00017998,2]
[358086232,1744698633962,-500.0,0.00017998,2]
[358086233,1744698633972,-500.0,0.00017998,2]
[358086234,1744698633982,-500.0,0.00017998,2]
[358086235,1744698633992,-500.0,0.00017998,2]
[358086236,1744698634002,-683.07,0.00017998,2]
[358086237,1744698634012,-683.07,0.00017998,2]
[358086238,1744698634022,-683.07,0.00017998,2]
[358086239,1744698634032,-8453.44,0.00017998,2]
[358086240,1744698634042,-8453.44,0.00017998,2]
[358086241,1744698634052,-8453.44,0.00017998,2]
[358086242,1744698634062,-8453.44,0.00017998,2]
[358086243,1744698634077,-2463.0,0.00017998,2]
[358086244,1744698634087,-500.0,0.00017998,2]
[358086245,1744698634097,-500.0,0.00017998,2]
[358086246,1744698634107,-633.41,0.00017998,2]
[358086247,1744698634117,-685.62,0.00017998,2]
[358086248,1744698634127,-328.28002082,0.00017998,2]
[358086249,1744698634141,-357.33997918,0.00017998,2]
[358086250,1744698634151,-685.62,0.00017998,2]
[358086251,1744698634161,-685.62,0.00017998,2]
[358086252,1744698634171,-1427.0,0.00017998,2]
[358086253,1744698634181,-500.0,0.00017998,2]
[358086254,1744698634191,-7.45753132,0.00017998,2]
[358086255,1744698634203,-492.54246868,0.00017998,2]
[358086256,1744698634213,-500.0,0.00017998,2]
[358086257,1744698634223,-500.0,0.00017998,2]
[358086258,1744698634233,-500.0,0.00017998,2]
[358086259,1744698634243,-500.0,0.00017998,2]
[358086260,1744698634253,-500.0,0.00017998,2]
[358086261,1744698634262,-500.0,0.00017998,2]
[358086262,1744698634272,-500.0,0.00017998,2]
[358086263,1744698634282,-536.12,0.00017998,2]
[358086264,1744698634294,-500.0,0.00017998,2]
[358086265,1744698634307,-500.0,0.00017998,2]
[358086266,1744698634318,-250.221345,0.00017998,2]
[358086267,1744698634331,-500.0,0.00017998,2]
[358086268,1744698634343,-500.0,0.00017998,2]
[358086269,1744698634352,-500.0,0.00017998,2]
[358086270,1744698634362,-500.0,0.00017998,2]
[358086271,1744698634372,-500.0,0.00017998,2]
[358086272,1744698634382,-500.0,0.00017998,2]
[358086273,1744698634391,-1805.28,0.00017998,2]
[358086274,1744698634401,-1805.28,0.00017998,2]
[358086275,1744698634410,-1805.28,0.00017998,2]
[358086276,1744698634421,-1805.28,0.00017998,2]
[358086277,1744698634430,-500.0,0.00017998,2]
[358086278,1744698634439,-500.0,0.00017998,2]
[358086279,1744698634449,-500.0,0.00017998,2]
[358086280,1744698634459,-500.0,0.00017998,2]
[358086281,1744698634469,-500.0,0.00017998,2]
[358086282,1744698634478,-500.0,0.00017998,2]
[358086283,1744698634489,-500.0,0.00017998,2]
[358086284,1744698634499,-500.0,0.00017998,2]
[358086285,1744698634509,-503.80138095,0.00017998,2]
[358086286,1744698634518,-500.0,0.00017998,2]
[358086287,1744698634528,-500.0,0.00017998,2]
[358086288,1744698634538,-500.0,0.00017998,2]
[358086289,1744698634547,-500.0,0.00017998,2]
[358086290,1744698634556,-500.0,0.00017998,2]
[358086291,1744698634565,-500.0,0.00017998,2]
[358086292,1744698634575,-500.0,0.00017998,2]
[358086293,1744698634584,-500.0,0.00017998,2]
[358086294,1744698634594,-500.0,0.00017998,2]
[358086295,1744698634603,-500.0,0.00017998,2]
[358086296,1744698634612,-346.58418617,0.00017998,2]
[358086297,1744698634622,-500.0,0.00017998,2]
[358086298,1744698634631,-500.0,0.00017998,2]
[358086299,1744698634640,-500.0,0.00017998,2]
[358086300,1744698634650,-500.0,0.00017998,2]
[358086301,1744698634659,-219.43269544,0.00017998,2]
[358086302,1744698634669,-500.0,0.00017998,2]
[358086303,1744698634679,-500.0,0.00017998,2]
[358086304,1744698634688,-500.0,0.00017998,2]
[358086305,1744698634697,-500.0,0.00017998,2]
[358086306,1744698634707,-500.0,0.00017998,2]
[358086307,1744698634716,-500.0,0.00017998,2]
[358086308,1744698634726,-500.0,0.00017998,2]
[358086309,1744698634735,-500.0,0.00017998,2]
[358086310,1744698634745,-500.0,0.00017998,2]
[358086311,1744698634755,-500.0,0.00017998,2]
[358086312,1744698634764,-500.0,0.00017998,2]
[358086313,1744698634773,-616.06535249,0.00017998,2]
[358086314,1744698634782,-401.00753303,0.00017998,2]
[358086315,1744698634792,-500.0,0.00017998,2]
[358086316,1744698634801,-376.34,0.00017998,2]
[358086317,1744698634810,-500.0,0.00017998,2]
[358086318,1744698634820,-500.0,0.00017998,2]
[358086319,1744698634830,-500.0,0.00017998,2]
[358086320,1744698634839,-500.0,0.00017998,2]
[358086321,1744698634848,-500.0,0.00017998,2]
[358086322,1744698634858,-500.0,0.00017998,2]
[358086323,1744698634868,-500.0,0.00017998,2]
[358086324,1744698634877,-500.0,0.00017998,2]
[358086325,1744698634888,-500.0,0.00017998,2]
[358086326,1744698634898,-500.0,0.00017998,2]
[358086327,1744698634907,-284.62434292,0.00017998,2]
[358086328,1744698635109,-215.37565708,0.00017998,2]
[358086329,1744698635119,-364.71844628,0.00017998,2]
[358086330,1744698637412,-900.48983006,0.000179,2]
[358086331,1744698637424,-145.0006857,0.000179,2]
[358086332,1744698637434,-150.0,0.00017924,2]
[358086333,1744698637443,-2093.5993195,0.00017938,2]
[358086334,1744698637453,-519.86282771,0.00017938,2]
[358086335,1744698637465,-1351.53785279,0.00017938,2]
[358086336,1744698637474,-152.0,0.00017938,2]
[358086337,1744698637483,-135.28155372,0.00017998,2]
[358086338,1744698637492,-500.0,0.00017998,2]
[358086339,1744698637501,-504.61939937,0.00017998,2]
[358086340,1744698637510,-7885.66,0.00017998,2]
[358086341,1744698637520,-4559.70139984,0.00017998,2]
[358086342,1744698637531,-925.1,0.00017998,2]
[358086343,1744698637543,-673.65701823,0.00017998,2]
[358086344,1744698637558,-607.500001,0.00017998,2]
[358086345,1744698637568,-736.57390145,0.00017998,2]
[358086346,1744698637579,-383.12767948,0.00017998,2]
[358086347,1744698637589,-643.80167884,0.00017998,2]
[358086348,1744698637600,-368.47889,0.00017998,2]
[358086349,1744698637611,-680.891175,0.00017998,2]
[358086350,1744698637621,-528.69395831,0.00017998,2]
[358086351,1744698637632,-1085.09011866,0.00017998,2]
[358086352,1744698637643,-4578.70417919,0.00017998,2]
[358086353,1744698637652,-7885.66,0.00017998,2]
[358086354,1744698637661,-500.0,0.00017998,2]
[358086355,1744698637670,-500.0,0.00017998,2]
[358086356,1744698637679,-500.0,0.00017998,2]
[358086357,1744698637689,-500.0,0.00017998,2]
[358086358,1744698637698,-500.0,0.00017998,2]
[358086359,1744698637707,-500.0,0.00017998,2]
[358086360,1744698637715,-500.0,0.00017998,2]
[358086361,1744698637724,-500.0,0.00017998,2]
[358086362,1744698637733,-500.0,0.00017998,2]
[358086363,1744698637743,-500.0,0.00017998,2]
[358086364,1744698637752,-500.0,0.00017998,2]
[358086365,1744698637762,-500.0,0.00017998,2]
[358086366,1744698637771,-500.0,0.00017998,2]
[358086367,1744698637780,-500.0,0.00017998,2]
[358086368,1744698637789,-500.0,0.00017998,2]
[358086369,1744698637799,-500.0,0.00017998,2]
[358086370,1744698637808,-500.0,0.00017998,2]
[358086371,1744698637819,-500.0,0.00017998,2]
[358086373,1744698637828,-500.0,0.00017998,2]
[358086375,1744698637837,-500.0,0.00017998,2]
[358086377,1744698637846,-500.0,0.00017998,2]
[358086378,1744698637855,-500.0,0.00017998,2]
[358086379,1744698637863,-500.0,0.00017998,2]
[358086380,1744698637872,-500.0,0.00017998,2]
[358086381,1744698637881,-500.0,0.00017998,2]
[358086382,1744698637890,-500.0,0.00017998,2]
[358086383,1744698637899,-500.0,0.00017998,2]
[358086385,1744698637908,-426.73701313,0.00017998,2]
[358086387,1744698637919,-73.26298687,0.00017998,2]
[358086389,1744698637928,-500.0,0.00017998,2]
[358086391,1744698637937,-500.0,0.00017998,2]
[358086393,1744698637946,-500.0,0.00017998,2]
[358086396,1744698637955,-61984.77861112,0.00017999,2]
[358086398,1744698637966,-1606.88965299,0.00017999,2]
[358086400,1744698637980,-486.09,0.00017999,2]
[358086403,1744698637991,-614.6374616,0.00017999,2]
[358086405,1744698638002,-884.93,0.00017999,2]
[358086455,1744698639533,-531.51310015,0.00017999,2]
[358086456,1744698639545,-2884.84977065,0.00017999,2]
[358086457,1744698639557,-2451.1127707,0.00017999,2]
[358086458,1744698639568,-1030.52861071,0.00017999,2]
[358086459,1744698639682,-19.91811383,0.00017999,2]
[358086460,1744698639755,-388.91225,0.00017999,2]
[358086461,1744698639767,-537.74365054,0.00017999,2]
[358086462,1744698639905,-644.52970758,0.00017999,2]
[358086463,1744698639919,-685.03297741,0.00017999,2]
[358086464,1744698639930,-1192.84638932,0.00017999,2]
[358086465,1744698640006,-6134.80730985,0.00017999,2]
[358086466,1744698640017,-4821.6798791,0.00017999,2]
[358086467,1744698640028,-308.94361421,0.00017999,2]
[358086480,1744698644746,-512.87917781,0.00017999,2]
[358086481,1744698644757,-4104.0004989,0.00017999,2]
[358086482,1744698644769,-7517.8456877,0.00017999,2]
[358086483,1744698644780,-22128.63282189,0.00017999,2]
[358086484,1744698645530,-865.0,0.00017938,2]
[358086485,1744698645540,-13394.49154457,0.00017999,2]
[358086486,1744698645550,-229.00479066,0.00017999,2]
[358086487,1744698645559,-1000.0,0.00017999,2]
[358086488,1744698645569,-1000.0,0.00017999,2]
[358086489,1744698645579,-1000.0,0.00017999,2]
[358086490,1744698645588,-1000.0,0.00017999,2]
[358086491,1744698645598,-1000.0,0.00017999,2]
[358086492,1744698645608,-1000.0,0.00017999,2]
[358086493,1744698645618,-1000.0,0.00017999,2]
[358086494,1744698645627,-1000.0,0.00017999,2]
[358086495,1744698645636,-1000.0,0.00017999,2]
[358086496,1744698645646,-143.70366477,0.00017999,2]
[358086497,1744698645659,-462.909338,0.00017999,2]
[358086498,1744698645668,-547.33,0.00017999,2]
[358086499,1744698645679,-500.0,0.00017999,2]
[358086500,1744698645689,-500.0,0.00017999,2]
[358086501,1744698645698,-500.0,0.00017999,2]
[358086502,1744698645709,-500.0,0.00017999,2]
[358086503,1744698645719,-500.0,0.00017999,2]
[358086504,1744698645728,-500.0,0.00017999,2]
[358086505,1744698645738,-274.15368755,0.00017999,2]
[358086507,1744699171246,2876.42,0.00013699,2]
[358086508,1744699171592,2876.42,0.00013699,2]
[358086509,1744699171956,2876.42,0.00013699,2]
[358086510,1744699172265,2876.42,0.00013699,2]
[358086511,1744699172682,2876.42,0.00013699,2]
[358086512,1744699173036,2876.42,0.00013699,2]
[358086513,1744699173376,303.18363777,0.00013699,2]
[358086514,1744699173401,2573.23636223,0.00013699,2]
[358086515,1744699173781,2876.42,0.00013699,2]
[358086516,1744699174087,2876.42,0.00013699,2]
[358086517,1744699174503,2876.42,0.00013699,2]
[358086518,1744699174815,2876.42,0.00013699,2]
[358086519,1744699175181,1731.75686904,0.00013699,2]
[358086520,1744699175206,1144.66313096,0.00013699,2]
[358086521,1744699175535,2876.42,0.00013699,2]
[358086522,1744699175868,2876.42,0.00013699,2]
[358086523,1744699176186,1428.57323127,0.00013699,2]
[358086524,1744699176209,1447.84676873,0.00013699,2]
[358086525,1744699176533,2876.42,0.00013699,2]
[358086526,1744699176888,2876.42,0.00013699,2]
[358086527,1744699177893,2876.42,0.00013699,2]
[358086528,1744699178172,2876.42,0.00013699,2]
[358086529,1744699178524,2876.47359666,0.00013699,2]
[358086530,1744699269951,-436.72717665,0.00017621,2]
[358086531,1744699320886,219.06033788,0.00023732,30]
[358086532,1744699356622,649.69,0.00016921,2]
[358086533,1744699401639,532.04,0.00015007,2]
[358086534,1744699401874,532.04,0.0001727,2]
[358086535,1744699438805,250.0,0.00016927,2]
[358086536,1744699629680,2514.0,0.0002,5]
[358086546,1744699778301,-436.72717665,0.00017544,2]
[358086552,1744699831536,-357.21152039,0.00017699,2]
[358086553,1744699831546,-2142.96,0.000177,2]
[358086554,1744699831557,-150.0,0.00017732,2]
[358086555,1744699831567,-150.0,0.00017735,2]
[358086556,1744699831576,-934.3185,0.00017739,2]
[358086557,1744699831585,-150.0,0.00017782,2]
[358086558,1744699831595,-154.7549684,0.0001782,2]
[358086559,1744699831604,-150.0,0.00017826,2]
[358086560,1744699831614,-150.0,0.0001783,2]
[358086561,1744699831623,-5000.0,0.00017839,2]
[358086562,1744699831632,-150.0,0.00017863,2]
[358086563,1744699831642,-150.0,0.00017876,2]
[358086564,1744699831651,-150.0,0.00017887,2]
[358086565,1744699831660,-300.0,0.00017894,2]
[358086566,1744699831669,-300.0,0.00017896,2]
[358086567,1744699831679,-550.0,0.00017897,2]
[358086568,1744699831688,-2163.26777525,0.00017898,2]
[358086569,1744699831705,-1550.60000001,0.00017898,2]
[358086570,1744699831716,-10904.15802534,0.00017898,2]
[358086571,1744699831728,-1305.1615994,0.00017898,2]
[358086572,1744699831738,-500.0,0.00017898,2]
[358086573,1744699831747,-6412.43449184,0.00017898,2]
[358086574,1744699831759,-3680.24120816,0.00017898,2]
[358086575,1744699831768,-2304.35358204,0.00017899,2]
[358086576,1744699831779,-6127.228,0.00017899,2]
[358086577,1744699831791,-3253.93499041,0.00017899,2]
[358086578,1744699831803,-5513.04412755,0.00017899,2]
[358086579,1744699831812,-305.653,0.00017899,2]
[358086580,1744699831822,-267.16893375,0.00017899,2]
[358086581,1744699831831,-165.38840445,0.00017899,2]
[358086582,1744699831840,-262.14229625,0.00017899,2]
[358086583,1744699831849,-267.16893373,0.00017899,2]
[358086584,1744699831859,-267.16893373,0.00017899,2]
[358086585,1744699831868,-267.16893373,0.00017899,2]
[358086586,1744699831877,-267.16893373,0.00017899,2]
[358086587,1744699831885,-267.16893373,0.000179,2]
[358086588,1744699831894,-267.16893373,0.000179,2]
[358086589,1744699831903,-267.16893373,0.000179,2]
[358086590,1744699831913,-267.16893373,0.000179,2]
[358086591,1744699831922,-267.16893373,0.000179,2]
[358086592,1744699831931,-165.38840445,0.000179,2]
[358086593,1744699831940,-216.19675875,0.000179,2]
[358086595,1744699831950,-205.62175446,0.00017936,2]
[358086596,1744699831959,-150.0,0.00017947,2]
[358086597,1744699831968,-28.30045954,0.00017948,2]
[358086598,1744699831996,-2018.69954046,0.00017948,2]
[358086599,1744699832005,-1288.0,0.00017948,2]
[358086600,1744699832015,-1328.0,0.00017948,2]
[358086601,1744699832024,-791.0,0.00017948,2]
[358086602,1744699832033,-1438.0,0.00017948,2]
[358086603,1744699832043,-1280.0,0.00017948,2]
[358086604,1744699832052,-545.0,0.00017948,2]
[358086605,1744699832061,-908.0,0.00017948,2]
[358086606,1744699832070,-4149.0,0.00017948,2]
[358086607,1744699832079,-460.97,0.00017948,2]
[358086608,1744699832088,-865.0,0.00017948,2]
[358086609,1744699832099,-3965.0,0.00017948,2]
[358086610,1744699832108,-267.794,0.00017948,2]
[358086611,1744699832117,-150.0,0.00017955,2]
[358086613,1744699832127,-500.0,0.0001797,2]
[358086615,1744699832136,-150.0,0.0001797,2]
[358086617,1744699832146,-150.0,0.0001797,2]
[358086619,1744699832155,-500.0,0.00017973,2]
[358086621,1744699832164,-500.0,0.00017997,2]
[358086623,1744699832174,-521.23222812,0.00017997,2]
[358086625,1744699832183,-500.0,0.00017997,2]
[358086627,1744699832192,-430.19913922,0.00017997,2]
[358086640,1744699837810,-340.18071282,0.00017898,2]
[358086641,1744699837934,-515.6509861,0.00017898,2]
[358086642,1744699837943,-69.80086078,0.00017997,2]
[358086643,1744699837953,-531.91109091,0.00017997,2]
[358086644,1744699837963,-500.0,0.00017997,2]
[358086646,1744699837972,-500.0,0.00017997,2]
[358086648,1744699837981,-497.13452838,0.00017997,2]
[358086650,1744699837990,-500.0,0.00017997,2]
[358086652,1744699838000,-500.0,0.00017997,2]
[358086654,1744699838009,-500.0,0.00017997,2]
[358086655,1744699838018,-500.0,0.00017997,2]
[358086656,1744699838219,-500.0,0.00017997,2]
[358086657,1744699838228,-500.0,0.00017997,2]
[358086658,1744699838238,-500.0,0.00017997,2]
[358086659,1744699838248,-500.0,0.00017997,2]
[358086660,1744699838258,-500.0,0.00017997,2]
[358086661,1744699838267,-1693.66,0.00017997,2]
[358086662,1744699838276,-500.0,0.00017997,2]
[358086663,1744699838286,-517.46401439,0.00017997,2]
[358086664,1744699838295,-500.0,0.00017997,2]
[358086665,1744699838304,-500.0,0.00017997,2]
[358086666,1744699838313,-500.0,0.00017997,2]
[358086667,1744699838322,-500.0,0.00017997,2]
[358086668,1744699838332,-500.0,0.00017997,2]
[358086669,1744699838341,-500.0,0.00017997,2]
[358086670,1744699838350,-500.0,0.00017997,2]
[358086671,1744699838359,-500.0,0.00017997,2]
[358086672,1744699838368,-500.0,0.00017997,2]
[358086673,1744699838383,-750.03,0.00017997,2]
[358086674,1744699838395,-500.0,0.00017997,2]
[358086675,1744699838406,-632.83699509,0.00017997,2]
[358086676,1744699838416,-500.0,0.00017997,2]
[358086677,1744699838425,-500.0,0.00017997,2]
[358086678,1744699838434,-500.0,0.00017997,2]
[358086679,1744699838443,-500.0,0.00017997,2]
[358086680,1744699838451,-502.27986515,0.00017997,2]
[358086681,1744699838461,-500.0,0.00017997,2]
[358086682,1744699838472,-500.0,0.00017997,2]
[358086683,1744699838483,-500.0,0.00017997,2]
[358086684,1744699838492,-1103.19,0.00017997,2]
[358086685,1744699838503,-500.0,0.00017997,2]
[358086686,1744699838514,-551.88,0.00017997,2]
[358086687,1744699838523,-500.0,0.00017997,2]
[358086688,1744699838533,-500.0,0.00017997,2]
[358086689,1744699838542,-500.0,0.00017997,2]
[358086690,1744699838553,-174.71714797,0.00017997,2]
[358086691,1744699838563,-988.57,0.00017997,2]
[358086692,1744699838572,-500.0,0.00017997,2]
[358086693,1744699838582,-1095.31,0.00017997,2]
[358086694,1744699838591,-500.0,0.00017997,2]
[358086695,1744699838600,-500.0,0.00017997,2]